bitfinex/quotes_SOLUSD_20250308
["timestamp","ask_amount","ask_price","bid_price","bid_amount"]
[1741429230668,21.04865736,138.5,138.49,0.033]
[1741429231844,0.14216157,138.5,138.49,0.033]
[1741429232267,0.14216157,138.5,138.49,13.71929579]
[1741429233044,0.14216157,138.5,138.49,0.033]
[1741429233945,0.14216157,138.5,138.49,7.2537]
[1741429234545,0.14216157,138.5,138.49,0.033]
[1741429240878,21.04865736,138.5,138.49,0.033]
[1741429241272,28.78836481,138.5,138.49,0.033]
[1741429242787,0.14216157,138.5,138.49,0.033]
[1741429243086,0.14216157,138.5,138.49,21.45900324]
[1741429244465,0.14216157,138.5,138.49,0.033]
[1741429244661,0.14216157,138.5,138.49,21.45900324]
[1741429245353,0.14216157,138.5,138.49,0.033]
[1741429246967,0.14216157,138.5,138.49,7.2537]
[1741429249388,0.14216157,138.5,138.49,0.033]
[1741429252495,7.36236157,138.5,138.49,0.033]
[1741429252690,0.14216157,138.5,138.49,0.033]
[1741429254993,28.78836481,138.5,138.49,0.033]
[1741429255366,0.14216157,138.5,138.49,0.033]
[1741429255567,7.36236157,138.5,138.49,0.033]
[1741429255772,0.14216157,138.5,138.49,0.033]
[1741429256719,0.14216157,138.5,138.49,21.45900324]
[1741429258281,0.14216157,138.5,138.49,0.033]
[1741429260491,0.14216157,138.5,138.49,7.2537]
[1741429261174,0.14216157,138.5,138.49,28.67970324]
[1741429263400,0.14216157,138.5,138.49,20.95278346]
[1741429267095,0.14216157,138.5,138.49,80.60243232]
[1741429267391,0.14216157,138.5,138.49,61.95278346]
[1741429267692,0.14216157,138.5,138.49,0.033]
[1741429269596,21.06144503,138.5,138.49,0.033]
[1741429271369,28.7858309,138.5,138.49,0.033]
[1741429272097,0.14216157,138.5,138.49,0.033]
[1741429272799,0.14216157,138.5,138.49,28.67716933]
[1741429274582,0.14216157,138.5,138.49,7.2537]
[1741429274884,0.14216157,138.5,138.49,88.32681819]
[1741429275290,0.03,138.56,138.5,18.64964886]
[1741429275511,0.03,138.56,138.55,21.42346933]
[1741429275815,0.03,138.56,138.54,21.42346933]
[1741429276486,0.03,138.56,138.52,21.42346933]
[1741429276688,21.45346933,138.56,138.5,21.42346933]
[1741429277108,21.42346933,138.55,138.49,21.45646933]
[1741429277408,0.14216157,138.53,138.49,21.45646933]
[1741429278214,0.14216157,138.53,138.49,0.033]
[1741429278581,0.14216157,138.53,138.49,21.45646933]
[1741429279483,0.14216157,138.53,138.49,0.033]
[1741429279484,0.14216157,138.51,138.49,0.033]
[1741429279808,21.5656309,138.5,138.49,0.033]
[1741429280601,28.7858309,138.5,138.49,0.033]
[1741429280814,111.0858309,138.5,138.49,0.033]
[1741429280984,117.4029309,138.5,138.49,0.033]
[1741429281312,136.05257976,138.5,138.49,0.033]
[1741429282481,53.75257976,138.5,138.49,0.033]
[1741429283513,35.1029309,138.5,138.49,0.033]
[1741429283695,53.75257976,138.5,138.49,0.033]
[1741429287316,35.1029309,138.5,138.49,0.033]
[1741429288310,53.75257976,138.5,138.49,0.033]
[1741429288809,35.1029309,138.5,138.49,0.033]
[1741429289007,27.8827309,138.5,138.49,0.033]
[1741429289199,6.45926157,138.5,138.49,0.033]
[1741429289405,27.8827309,138.5,138.49,0.033]
[1741429290323,0.14216157,138.5,138.49,0.033]
[1741429291195,21.5656309,138.5,138.49,0.033]
[1741429293017,28.7858309,138.5,138.49,0.033]
[1741429294286,7.2212,138.48,138.47,0.033]
[1741429294489,28.7868309,138.48,138.47,0.033]
[1741429300527,0.14216157,138.48,138.47,0.033]
[1741429303202,7.36336157,138.48,138.47,0.033]
[1741429303600,28.7868309,138.48,138.47,0.033]
[1741429304118,7.36336157,138.48,138.47,0.033]
[1741429305124,0.14216157,138.48,138.47,0.033]
[1741429316221,0.14216157,138.48,138.47,21.45646933]
[1741429316457,0.14216157,138.48,138.47,28.67816933]
[1741429318611,0.14216157,138.48,138.47,21.45646933]
[1741429319343,0.14216157,138.48,138.47,28.67816933]
[1741429320649,0.14216157,138.48,138.47,47.32781819]
[1741429321943,0.14216157,138.48,138.47,88.32781819]
[1741429323926,0.14216157,138.48,138.47,89.41060295]
[1741429324629,0.14216157,138.48,138.47,88.32781819]
[1741429325546,0.03,138.49,138.48,18.64964886]
[1741429325756,0.03,138.5,138.49,46.52761819]
[1741429327636,0.03,138.5,138.49,53.74831819]
[1741429329051,0.03,138.56,138.52,20.0]
[1741429329238,0.03,138.56,138.55,21.42346933]
[1741429330055,0.03,138.56,138.55,28.64106933]
[1741429330647,0.03,138.56,138.55,47.29071819]
[1741429331448,0.03,138.56,138.54,18.64964886]
[1741429331770,0.03,138.56,138.55,40.07311819]
[1741429333844,0.03,138.56,138.55,47.29071819]
[1741429336853,0.03,138.56,138.55,88.29071819]
[1741429341053,0.03,138.63,138.56,18.64964886]
[1741429341257,0.03,138.63,138.61,21.42346933]
[1741429346463,0.03,138.63,138.6,21.42346933]
[1741429347164,0.03,138.63,138.62,21.42346933]
[1741429347528,0.03,138.63,138.62,88.28701819]
[1741429348557,0.03,138.63,138.62,62.42346933]
[1741429348927,0.03,138.63,138.62,41.0]
[1741429349765,0.03,138.63,138.6,21.42346933]
[1741429349951,0.03,138.63,138.59,21.42346933]
[1741429350969,0.14216157,138.62,138.59,21.42346933]
[1741429359364,0.14216157,138.62,138.59,13.68252238]
[1741429365180,0.14216157,138.62,138.61,13.68252238]
[1741429365477,0.03,138.63,138.61,13.68252238]
[1741429369698,0.03,138.63,138.62,13.68252238]
[1741429370359,0.03,138.63,138.62,73.33217124]
[1741429371885,0.03,138.63,138.62,80.54607124]
[1741429373194,0.03,138.63,138.62,13.68252238]
[1741429373980,0.03,138.63,138.61,13.68252238]
[1741429374289,0.03,138.63,138.6,60.92252238]
[1741429375091,0.17216157,138.63,138.6,60.92252238]
[1741429375289,0.17216157,138.63,138.6,47.24]
[1741429376470,0.17216157,138.63,138.6,60.92252238]
[1741429376669,0.03,138.63,138.61,13.68252238]
[1741429379896,0.03,138.63,138.6,19.92252238]
[1741429380393,0.17216157,138.63,138.6,6.24]
[1741429380592,0.17216157,138.63,138.59,73.33217124]
[1741429381495,0.03,138.63,138.6,13.68252238]
[1741429383598,0.03,138.63,138.59,32.33217124]
[1741429387971,0.03,138.63,138.6,13.68252238]
[1741429389308,0.03,138.63,138.59,32.33217124]
[1741429389614,0.03,138.63,138.61,9.35909266]
[1741429389797,0.03,138.63,138.59,32.33217124]
[1741429390108,0.03,138.63,138.58,54.68252238]
[1741429390313,0.14216157,138.61,138.56,13.71552238]
[1741429390694,0.14216157,138.61,138.57,13.68252238]
[1741429392214,0.14216157,138.61,138.58,32.33217124]
[1741429392399,0.03,138.63,138.59,13.68252238]
[1741429392400,0.17216157,138.63,138.59,13.68252238]
[1741429392713,7.38556157,138.63,138.59,13.68252238]
[1741429393108,0.03,138.63,138.59,13.68252238]
[1741429394324,0.03,138.63,138.6,9.60935421]
[1741429395011,0.03,138.63,138.59,13.68252238]
[1741429396017,0.03,138.63,138.58,39.54787124]
[1741429396219,0.03,138.63,138.6,9.58064352]
[1741429396821,0.03,138.63,138.58,39.54787124]
[1741429397517,0.03,138.63,138.59,20.89762238]
[1741429397819,0.03,138.63,138.6,32.33217124]
[1741429400120,0.03,138.63,138.6,39.54707124]
[1741429403227,0.03,138.63,138.62,18.64964886]
[1741429403409,0.03,138.63,138.62,73.33217124]
[1741429403727,0.03,138.63,138.62,80.54607124]
[1741429409519,0.03,138.63,138.62,41.0]
[1741429412315,0.14216157,138.62,138.58,41.0]
[1741429412817,0.14216157,138.62,138.58,61.89852238]
[1741429413015,0.03,138.63,138.59,32.33217124]
[1741429413630,0.14216157,138.62,138.58,41.0]
[1741429413812,0.14216157,138.62,138.58,18.64964886]
[1741429414009,0.14216157,138.62,138.58,32.33217124]
[1741429414204,0.17216157,138.63,138.58,32.33217124]
[1741429414430,0.17216157,138.63,138.59,20.89802238]
[1741429415436,7.38566157,138.63,138.58,39.54797124]
[1741429415736,21.06818395,138.63,138.58,25.86544886]
[1741429415933,21.06818395,138.63,138.58,18.64964886]
[1741429416607,21.06818395,138.63,138.58,25.86564886]
[1741429416816,0.17216157,138.63,138.58,39.54817124]
[1741429417122,0.17216157,138.63,138.59,13.68252238]
[1741429418637,7.38556157,138.63,138.58,39.54817124]
[1741429419133,7.38556157,138.63,138.58,32.33217124]
[1741429419353,21.06808395,138.63,138.58,18.64964886]
[1741429420138,21.06808395,138.63,138.57,32.33217124]
[1741429420317,0.14216157,138.61,138.57,18.64964886]
[1741429421735,7.35666157,138.61,138.57,18.64964886]
[1741429422639,0.14216157,138.62,138.57,32.33217124]
[1741429422841,0.14216157,138.62,138.58,32.33217124]
[1741429423524,0.03,138.63,138.58,32.33217124]
[1741429423834,0.03,138.63,138.58,39.54777124]
[1741429424645,0.03,138.63,138.59,13.68252238]
[1741429425649,0.03,138.63,138.58,32.33217124]
[1741429427147,0.03,138.63,138.58,39.54817124]
[1741429428448,0.03,138.63,138.58,39.54807124]
[1741429429456,0.03,138.63,138.58,32.33217124]
[1741429429756,0.14216157,138.62,138.58,18.64964886]
[1741429430536,7.35626157,138.62,138.56,20.93232238]
[1741429431239,21.03878395,138.62,138.56,20.93232238]
[1741429432136,0.14216157,138.62,138.57,13.68252238]
[1741429432337,0.14216157,138.62,138.57,20.89892238]
[1741429433553,7.35616157,138.62,138.57,20.89892238]
[1741429434051,0.14216157,138.62,138.57,20.89892238]
[1741429434555,0.17216157,138.63,138.58,32.33217124]
[1741429435664,0.17216157,138.63,138.59,7.2155]
[1741429437461,0.17216157,138.63,138.58,39.54797124]
[1741429438251,0.17216157,138.63,138.58,32.33217124]
[1741429438556,7.38566157,138.63,138.58,32.33217124]
[1741429439767,21.06818395,138.63,138.58,32.33217124]
[1741429439947,0.03,138.63,138.6,13.68252238]
[1741429442046,0.03,138.63,138.61,7.2144]
[1741429443937,0.03,138.63,138.59,13.68252238]
[1741429444130,0.14216157,138.62,138.58,41.0]
[1741429444936,0.14216157,138.61,138.58,41.0]
[1741429445254,13.82468395,138.61,138.56,0.033]
[1741429445441,0.14216157,138.61,138.56,0.033]
[1741429445642,13.82468395,138.59,138.56,0.033]
[1741429445866,0.14216157,138.57,138.56,0.033]
[1741429447265,13.82468395,138.59,138.56,0.033]
[1741429447458,0.14216157,138.59,138.56,13.71552238]
[1741429447961,0.14216157,138.59,138.56,20.93212238]
[1741429449659,0.14216157,138.59,138.57,32.33217124]
[1741429449866,0.14216157,138.61,138.57,32.33217124]
[1741429450967,0.14216157,138.61,138.57,18.64964886]
[1741429451342,0.14216157,138.59,138.56,0.033]
[1741429452041,13.82468395,138.6,138.56,0.033]
[1741429452674,0.14216157,138.57,138.56,0.033]
[1741429453859,7.35866157,138.57,138.56,0.033]
[1741429454346,0.14216157,138.57,138.56,0.033]
[1741429457270,0.14216157,138.58,138.56,0.033]
[1741429458343,0.14216157,138.6,138.56,0.033]
[1741429459578,0.14216157,138.6,138.56,18.68264886]
[1741429459873,0.14216157,138.61,138.56,13.71552238]
[1741429461681,0.14216157,138.61,138.57,25.86574886]
[1741429462759,7.35676157,138.61,138.56,0.033]
[1741429463069,0.14216157,138.59,138.56,0.033]
[1741429464278,13.68252238,138.58,138.56,0.033]
[1741429464573,0.14216157,138.57,138.56,0.033]
[1741429465177,0.14216157,138.58,138.56,0.033]
[1741429468683,0.17216157,138.6,138.56,13.71552238]
[1741429469752,0.14216157,138.59,138.56,0.033]
[1741429470404,0.17216157,138.6,138.56,0.033]
[1741429470883,0.17216157,138.6,138.56,7.25]
[1741429472075,0.17216157,138.6,138.57,18.64964886]
[1741429472288,0.03,138.6,138.57,32.33217124]
[1741429472650,0.03,138.6,138.58,13.68252238]
[1741429473984,0.03,138.6,138.59,13.68252238]
[1741429474186,0.03,138.6,138.59,20.89802238]
[1741429474758,0.03,138.6,138.59,13.68252238]
[1741429474953,0.03,138.6,138.57,39.54857124]
[1741429476581,0.03,138.6,138.58,13.68252238]
[1741429477388,0.03,138.6,138.59,13.68252238]
[1741429478281,0.03,138.6,138.59,39.54767124]
[1741429482366,0.03,138.6,138.59,80.54767124]
[1741429482881,0.0001,138.6,138.59,81.62948715]
[1741429483083,0.0001,138.6,138.59,80.54767124]
[1741429484497,0.03,138.63,138.6,18.79181043]
[1741429484675,0.03,138.63,138.62,32.33217124]
[1741429486810,0.03,138.63,138.62,39.54607124]
[1741429488307,0.03,138.63,138.62,80.54607124]
[1741429492091,0.03,138.67,138.63,18.64964886]
[1741429492414,0.0001,138.67,138.66,32.33217124]
[1741429492587,0.0001,138.67,138.66,79.57217124]
[1741429493189,0.0001,138.67,138.66,79.71433281]
[1741429493713,0.0001,138.67,138.66,80.79548899]
[1741429494085,0.0001,138.67,138.66,88.00728899]
[1741429494284,0.0001,138.67,138.66,86.78397124]
[1741429501997,0.0001,138.67,138.66,87.8652282]
[1741429502203,0.0001,138.69,138.68,38.64964886]
[1741429502419,0.0001,138.69,138.68,60.62400371]
[1741429503623,0.03,138.7,138.69,18.79181043]
[1741429503624,0.0001,138.7,138.69,18.79181043]
[1741429503792,0.0001,138.7,138.69,73.33217124]
[1741429504620,0.0001,138.7,138.69,80.54247124]
[1741429505318,0.0001,138.7,138.69,73.33217124]
[1741429505615,0.0001,138.7,138.69,80.54247124]
[1741429515109,0.0001,138.7,138.69,39.54247124]
[1741429517732,0.0001,138.7,138.69,40.62349349]
[1741429519028,0.0001,138.7,138.69,39.54247124]
[1741429520032,0.0001,138.7,138.69,40.62348496]
[1741429520730,0.0001,138.7,138.69,81.62348496]
[1741429521427,0.0001,138.71,138.7,0.14216157]
[1741429521618,0.0001,138.71,138.7,38.69433281]
[1741429524018,0.0001,138.71,138.7,45.90413281]
[1741429525512,0.03,138.72,138.7,45.90413281]
[1741429525513,0.03,138.73,138.7,168.40413281]
[1741429525723,89.62306826,138.93,138.85,20.0]
[1741429526039,89.62306826,138.93,138.89,18.64964886]
[1741429526236,0.14216157,138.91,138.85,20.06252238]
[1741429526417,13.82468395,138.91,138.86,18.64964886]
[1741429527217,0.14216157,138.91,138.86,39.94304673]
[1741429528916,15.1656,138.94,138.85,17.7007427]
[1741429528917,21.29339787,138.9,138.85,17.7007427]
[1741429529221,21.29339787,138.9,138.84,43.70324751]
[1741429529222,21.29339787,138.9,138.84,39.94304673]
[1741429529415,21.29339787,138.9,138.85,18.64964886]
[1741429530234,7.9682,138.94,138.86,39.94304673]
[1741429530425,21.29339787,138.92,138.86,39.94304673]
[1741429530737,15.1657,138.94,138.86,39.94304673]
[1741429530942,0.14216157,138.91,138.87,21.29339787]
[1741429531144,0.14216157,138.91,138.86,39.94304673]
[1741429532346,0.14216157,138.91,138.86,47.14444673]
[1741429533042,0.14216157,138.92,138.89,18.64964886]
[1741429533541,0.14216157,138.93,138.9,18.64964886]
[1741429534466,21.43555944,138.93,138.89,18.64964886]
[1741429537021,21.29339787,138.92,138.86,68.68639787]
[1741429537333,0.14216157,138.9,138.86,13.5944]
[1741429537733,0.14216157,138.9,138.86,34.88779787]
[1741429537926,0.14216157,138.9,138.86,13.5944]
[1741429538122,0.14216157,138.9,138.86,34.88779787]
[1741429538737,0.14216157,138.9,138.86,6.393]
[1741429538934,21.43555944,138.89,138.86,6.393]
[1741429539528,0.14216157,138.89,138.86,6.393]
[1741429539852,0.14216157,138.89,138.86,13.5944]
[1741429540240,0.14216157,138.89,138.86,7.2344]
[1741429540538,0.14216157,138.88,138.86,0.033]
[1741429541040,21.29339787,138.89,138.86,0.033]
[1741429541754,21.29339787,138.9,138.86,0.033]
[1741429542940,0.14216157,138.89,138.86,0.033]
[1741429543655,0.14216157,138.9,138.86,0.033]
[1741429544245,0.14216157,138.89,138.86,0.033]
[1741429550363,0.14216157,138.88,138.86,0.033]
[1741429550955,13.77290704,138.87,138.86,0.033]
[1741429552449,0.14216157,138.87,138.86,0.033]
[1741429556865,0.14216157,138.87,138.86,25.88404886]
[1741429557972,1.5562,138.97,138.86,76.05977296]
[1741429558176,13.63074547,138.96,138.91,18.64964886]
[1741429558870,13.63074547,138.95,138.91,25.84804886]
[1741429560075,0.17216157,138.94,138.91,25.84804886]
[1741429560676,0.03,138.94,138.91,25.84804886]
[1741429561577,0.03,138.94,138.91,39.47879433]
[1741429562951,0.17216157,138.94,138.91,18.64964886]
[1741429563455,0.17216157,138.94,138.91,25.84844886]
[1741429563661,0.1275918,138.94,138.91,25.84844886]
[1741429563875,20.95563727,138.94,138.9,41.0]
[1741429564055,13.63074547,138.92,138.9,41.0]
[1741429564377,13.63074547,138.92,138.87,18.64964886]
[1741429564580,13.75833727,138.94,138.88,13.63074547]
[1741429564756,13.75833727,138.94,138.89,13.63074547]
[1741429565161,13.75833727,138.94,138.89,20.83014547]
[1741429565366,13.75833727,138.94,138.89,7.1994]
[1741429565367,13.63074547,138.93,138.89,7.1994]
[1741429565569,13.63074547,138.93,138.89,18.64964886]
[1741429565878,0.14216157,138.93,138.89,32.28039433]
[1741429566291,13.77290704,138.94,138.89,32.28039433]
[1741429566461,0.14216157,138.94,138.89,32.28039433]
[1741429567380,0.14216157,138.94,138.9,7.1994]
[1741429568710,0.14216157,138.92,138.88,13.63074547]
[1741429569707,0.14216157,138.93,138.89,7.1999]
[1741429569899,0.14216157,138.93,138.9,13.63074547]
[1741429570103,0.14216157,138.95,138.91,13.63074547]
[1741429570277,0.14216157,138.95,138.92,13.63074547]
[1741429570481,0.14216157,138.97,138.93,18.64964886]
[1741429570687,13.77290704,138.97,138.93,18.64964886]
[1741429570880,13.77290704,138.97,138.92,13.63074547]
[1741429571082,0.14216157,138.95,138.92,18.64964886]
[1741429571686,0.14216157,138.96,138.92,18.64964886]
[1741429571884,0.03,138.94,138.92,18.64964886]
[1741429572388,0.03,138.94,138.92,25.84784886]
[1741429575486,0.03,138.94,138.92,39.47859433]
[1741429576491,0.03,138.94,138.93,13.63074547]
[1741429578608,0.03,138.94,138.93,20.82854547]
[1741429579110,0.03,138.94,138.93,39.47819433]
[1741429579482,0.03,138.94,138.93,18.64964886]
[1741429579909,0.03,138.94,138.93,39.47819433]
[1741429580401,0.03,138.94,138.93,80.47819433]
[1741429581310,0.14216157,138.96,138.93,80.47819433]
[1741429581484,0.14216157,138.96,138.95,13.63074547]
[1741429581683,0.14216157,138.96,138.95,73.28039433]
[1741429582190,0.14216157,138.96,138.95,79.60039433]
[1741429582581,0.14216157,138.96,138.95,86.79719433]
[1741429583212,2.031144,138.97,138.96,18.64964886]
[1741429583515,2.031144,138.97,138.96,32.28039433]
[1741429584488,2.031144,138.97,138.96,39.47669433]
[1741429584890,2.031144,138.97,138.96,25.84594886]
[1741429585211,2.17330557,138.97,138.96,39.47669433]
[1741429586612,2.17330557,138.97,138.96,80.47669433]
[1741429587111,2.17330557,138.97,138.96,80.6188559]
[1741429587315,2.17330557,138.97,138.96,81.697683]
[1741429587520,0.03,139.04,139.0,18.64964886]
[1741429587813,0.03,139.04,139.03,18.64964886]
[1741429592712,0.03,139.04,139.03,39.47299433]
[1741429594111,0.03,139.04,139.03,25.84224886]
[1741429594829,0.03,139.04,139.03,18.64964886]
[1741429595497,0.03,139.04,139.03,25.84224886]
[1741429596030,0.03,139.04,139.03,18.64964886]
[1741429596397,0.03,139.04,139.02,18.64964886]
[1741429596398,0.14216157,139.03,139.02,18.64964886]
[1741429596626,0.14216157,139.03,139.01,18.64964886]
[1741429596807,13.77290704,139.03,139.0,18.64964886]
[1741429597004,13.77290704,139.03,138.98,18.64964886]
[1741429597223,13.77290704,139.03,138.98,32.28039433]
[1741429598909,0.14216157,139.03,138.98,39.47559433]
[1741429600338,0.14216157,139.02,138.98,32.28039433]
[1741429601239,13.77290704,139.02,138.97,41.0]
[1741429601417,0.14216157,138.99,138.96,18.64964886]
[1741429602126,0.14216157,139.0,138.96,32.28039433]
[1741429602622,0.14216157,139.0,138.96,39.47659433]
[1741429604813,0.14216157,139.0,138.96,32.28039433]
[1741429606334,0.14216157,139.0,138.96,39.47659433]
[1741429606633,0.14216157,139.0,138.96,39.50959433]
[1741429607738,0.14216157,139.0,138.97,13.63074547]
[1741429610417,0.14216157,139.0,138.98,18.64964886]
[1741429610731,0.14216157,139.0,138.97,20.82644547]
[1741429610732,0.14216157,139.03,138.99,32.28039433]
[1741429612342,0.17216157,139.04,139.0,39.47459433]
[1741429615046,0.17216157,139.04,139.02,18.64964886]
[1741429615249,0.17216157,139.04,139.02,32.28039433]
[1741429615451,0.03,139.04,139.02,32.28039433]
[1741429615748,0.03,139.04,139.02,18.64964886]
[1741429618652,0.03,139.04,139.02,25.84274886]
[1741429619323,0.17216157,139.04,139.01,18.64964886]
[1741429619937,0.14216157,139.03,139.0,41.0]
[1741429620238,0.14216157,139.03,139.01,18.64964886]
[1741429620567,0.03,139.04,139.01,18.64964886]
[1741429620764,0.03,139.04,139.01,39.47389433]
[1741429621121,0.03,139.04,139.01,32.28039433]
[1741429621327,0.14216157,139.03,138.98,13.63074547]
[1741429621526,13.77290704,139.03,138.99,18.64964886]
[1741429622035,0.14216157,139.03,138.99,18.64964886]
[1741429622550,0.17216157,139.04,138.99,39.47489433]
[1741429624856,0.17216157,139.04,139.0,13.63074547]
[1741429625029,0.17216157,139.04,138.99,39.47489433]
[1741429626562,20.85294547,139.04,138.99,39.47489433]
[1741429626745,0.14216157,139.03,138.99,18.64964886]
[1741429627257,0.14216157,139.03,138.99,25.84424886]
[1741429627861,13.77290704,139.03,138.99,18.64964886]
[1741429628154,13.77290704,139.01,138.97,18.64964886]
[1741429628960,0.14216157,139.02,138.97,39.47609433]
[1741429629459,13.77290704,139.02,138.97,39.47609433]
[1741429629763,13.77290704,139.02,138.97,25.84534886]
[1741429630464,20.96620704,139.02,138.97,25.84534886]
[1741429630671,20.96620704,139.02,138.97,25.87834886]
[1741429630962,20.96620704,139.02,138.97,0.033]
[1741429631166,13.77290704,139.0,138.97,0.033]
[1741429632735,13.63074547,138.99,138.97,0.033]
[1741429633042,0.14216157,138.98,138.97,0.033]
[1741429634060,0.14216157,138.99,138.97,0.033]
[1741429634460,0.14216157,139.0,138.97,18.68264886]
[1741429634642,0.14216157,139.0,138.97,13.66374547]
[1741429635253,0.14216157,139.02,138.98,13.63074547]
[1741429636465,0.14216157,139.02,138.98,20.82594547]
[1741429637868,0.14216157,139.02,138.97,13.66374547]
[1741429638049,13.63074547,139.0,138.97,0.033]
[1741429638256,0.14216157,138.99,138.97,0.033]
[1741429639066,0.14216157,139.0,138.97,0.033]
[1741429639585,0.14216157,139.0,138.97,18.68264886]
[1741429639771,0.14216157,139.01,138.97,13.66374547]
[1741429639976,0.14216157,139.01,138.98,18.64964886]
[1741429641665,0.14216157,139.01,138.98,25.84474886]
[1741429642774,0.17216157,139.02,138.98,25.84474886]
[1741429644065,0.03,139.02,139.0,13.63074547]
[1741429644647,0.03,139.02,138.99,32.28039433]
[1741429644856,0.03,139.02,138.99,18.64964886]
[1741429645450,0.17216157,139.02,138.99,18.64964886]
[1741429648377,0.17216157,139.02,138.98,41.0]
[1741429648577,13.80290704,139.02,138.98,41.0]
[1741429648776,13.80290704,139.02,138.98,18.64964886]
[1741429649872,13.80290704,139.02,138.98,25.84464886]
[1741429650078,13.80290704,139.02,138.98,18.64964886]
[1741429650383,0.14216157,139.0,138.97,25.87834886]
[1741429651478,0.14216157,139.01,138.97,25.87834886]
[1741429651855,13.77290704,139.01,138.97,25.87834886]
[1741429652074,0.14216157,139.01,138.97,25.87834886]
[1741429655493,0.17216157,139.01,138.97,25.87834886]
[1741429655859,0.03,139.01,138.97,39.50909433]
[1741429656965,0.17216157,139.01,138.97,39.50909433]
[1741429659176,0.17216157,139.01,138.97,25.87834886]
[1741429661890,0.03,139.01,138.97,25.87834886]
[1741429662189,0.03,139.01,138.97,39.50909433]
[1741429662888,0.03,139.01,138.97,50.82983703]
[1741429663489,0.17216157,139.01,138.97,37.19909156]
[1741429665283,7.88526157,139.01,138.97,37.19909156]
[1741429666290,21.51600704,139.01,138.97,37.19909156]
[1741429666471,21.51600704,139.01,138.97,25.87834886]
[1741429669290,0.17216157,139.01,138.97,39.50909433]
[1741429669490,0.03,139.01,138.97,39.50909433]
[1741429670598,0.17216157,139.01,138.97,37.19909156]
[1741429670793,13.80290704,139.01,138.97,37.19909156]
[1741429671392,0.17216157,139.01,138.97,37.19909156]
[1741429671685,0.17216157,139.01,138.97,37.19899156]
[1741429672478,0.17216157,139.01,138.97,25.87824886]
[1741429679606,0.17216157,139.01,138.97,37.19899156]
[1741429686201,0.03,139.01,138.99,18.64964886]
[1741429687313,0.03,139.01,139.0,7.1942]
[1741429691206,0.03,139.01,139.0,25.84384886]
[1741429692137,0.03,139.01,139.0,39.47459433]
[1741429693822,0.03,139.01,139.0,18.64964886]
[1741429694007,0.03,139.01,139.0,29.97039156]
[1741429694207,0.03,139.01,139.0,11.3207427]
[1741429695427,13.80290704,139.01,139.0,11.3207427]
[1741429696231,13.80290704,139.01,138.98,11.3207427]
[1741429696232,0.14216157,139.0,138.98,11.3207427]
[1741429696926,13.63074547,139.0,138.98,11.3207427]
[1741429697129,13.77290704,138.99,138.98,11.3207427]
[1741429697299,15.36210704,138.99,138.98,11.3207427]
[1741429698635,15.36210704,138.99,138.97,0.033]
[1741429698801,13.77290704,138.98,138.97,0.033]
[1741429699002,0.14216157,138.98,138.97,0.033]
[1741429703013,0.14216157,138.98,138.97,32.31339433]
[1741429705314,0.14216157,138.98,138.97,39.50909433]
[1741429710645,0.03,139.01,139.0,52.28039433]
[1741429710846,0.0001,139.01,139.0,93.28039433]
[1741429711848,0.0001,139.01,139.0,100.47459433]
[1741429712223,0.0001,139.02,139.01,18.64964886]
[1741429712425,0.0001,139.02,139.01,32.28039433]
[1741429713361,0.0001,139.02,139.01,39.47409433]
[1741429714049,0.0001,139.02,139.01,93.99707621]
[1741429715144,0.0001,139.02,139.01,39.47409433]
[1741429715446,0.0001,139.02,139.01,39.6162559]
[1741429715629,0.0001,139.02,139.01,94.13923778]
[1741429715829,0.0001,139.02,139.01,39.6162559]
[1741429716231,0.0001,139.02,139.01,135.13923778]
[1741429716624,0.0001,139.02,139.01,136.21760406]
[1741429717550,0.0001,139.02,139.01,142.04118072]
[1741429717848,0.0001,139.02,139.01,140.96281444]
[1741429720430,0.0001,139.02,139.01,80.6162559]
[1741429722353,0.0001,139.02,139.01,135.13923778]
[1741429722528,0.0001,139.02,139.01,134.99707621]
[1741429723644,0.0001,139.02,139.01,136.07558026]
[1741429724563,0.0001,139.02,139.01,136.21774183]
[1741429730639,0.0001,139.02,139.01,135.13923778]
[1741429730839,0.0001,139.02,139.01,134.99707621]
[1741429731042,0.14216157,139.08,139.04,38.64964886]
[1741429731358,0.14216157,139.08,139.07,18.64964886]
[1741429732840,0.14216157,139.08,139.07,25.84024886]